Cogmind - Beta 10.2 @@@ ROGUE MODE // 2021.10.24 @ 14:33:27 Player: Dusk Result: Destroyed by S-10 Pest with Light Assault Rifle Performance ------------- Evolutions (0) 0 Regions Visited (1) 200 Robots Destroyed (14) 70 Value Destroyed (213) 213 Prototype IDs (0) 0 Alien Tech Used (0) 0 Bonus (0) 0 TOTAL SCORE: 483 Bonus ------- None Cogmind --------- Core Integrity 0/250 Matter 152/300 Energy 100/100 System Corruption 2% Temperature Cool (6) Movement Core (50) Location -10/Materials Parts ------- > --- POWER (1) -------- (None) > --- PROPULSION (2) --- (None) > --- UTILITY (2) ------ (None) > --- WEAPON (2) ------- (None) > --- INVENTORY (4) ---- Field Recycling Unit (0) Mining Laser Peak State ------------ > --- POWER ------------ Light Ion Engine > --- PROPULSION ------- Aluminum Leg Aluminum Leg > --- UTILITY ---------- Improved Terrain Scanner Field Recycling Unit > --- WEAPON ----------- EMP Blaster EMP Blaster > --- INVENTORY -------- Wheel Wheel Mining Laser [Rating: 11] Favorites ----------- Power Light Ion Engine Engine Light Ion Engine Propulsion Aluminum Leg Leg Aluminum Leg Utility Improved Terrain Scanner Device Improved Terrain Scanner Weapon Assault Rifle Energy Gun Small Laser Ballistic Gun Assault Rifle Launcher EMP Blaster Build | -11 -10 ------- Run | Scr Mat Slots Evolved . | . . Power . | . . Propulsion . | . . Utility . | . . Weapon . | . . Parts Attached 12 | 6 6 Power 1 | 1 . Engine 1 | 1 . Core . | . . Reactor . | . . Propulsion 3 | 2 1 Treads . | . . Leg 3 | 2 1 Wheel . | . . Hover . | . . Flight . | . . Utility 3 | 1 2 Device 3 | 1 2 Storage . | . . Processor . | . . Hackware . | . . Protection . | . . Artifact . | . . Weapon 5 | 2 3 Energy Gun 1 | 1 . Energy Cannon . | . . Ballistic Gun 2 | 1 1 Ballistic Cannon . | . . Launcher 2 | . 2 Special Weapon . | . . Impact Weapon . | . . Slashing Weapon . | . . Piercing Weapon . | . . Special Melee Weapon . | . . Unidentified Prototypes . | . . Parts Lost 7 | . 7 Power 1 | . 1 Propulsion 2 | . 2 Utility 2 | . 2 Weapon 2 | . 2 Highest Loss Streak 7 | . 7 Average Slot Usage (%) 95 | . 95 Engine 13 | . 13 Leg 27 | . 27 Device 26 | . 26 Energy Gun 1 | . 1 Ballistic Gun 12 | . 12 Launcher 11 | . 11 Naked Turns . | . . Heaviest Build 18 | 7 18 Greatest Support 20 | 20 20 Greatest Overweight (x) 1 | . 1 Average Overweight (x) . | . . Largest Inventory Capacity 4 | 4 4 Average Capacity 4 | 4 4 Most Carried 4 | 4 4 Average Carried 1 | 1 1 Final Capacity 4 | 4 4 Final Carried 3 | 3 2 Class Distribution -------------------- 100% | Mutant Dominant Class ---------------- Mutant | -10/Materials Resources | -11 -10 ----------- Run | Scr Mat Matter Collected 292 | 275 17 Remotely . | . . Salvage Created 310 | 97 213 Parts 37 | 12 25 Haulers Intercepted . | . . Recyclers Shooed . | . . Parts Field Recycled . | . . Retrieved Matter . | . . Parts Self-Destructed . | . . Prevented . | . . Kills | -11 -10 ------- Run | Scr Mat Combat Hostiles Destroyed 6 | 1 5 Guns 3 | 1 2 AOE 3 | . 3 Classes Destroyed 6 | 3 3 Worker 2 | 1 1 Builder 1 | . 1 Tunneler 4 | 3 1 Watcher 1 | . 1 Swarmer 3 | . 3 Grunt 3 | 1 2 Best Kill Streak 6 | 3 6 Combat Bots Only 4 | 1 4 Max Kills in Single Turn 3 | 2 3 Gunslinging . | . . Exploded 2 | . 2 Melee . | . . Uniques/NPCs Destroyed . | . . Combat | -11 -10 -------- Run | Scr Mat Damage Taken 699 | 12 687 Core 251 | . 251 Absorbed by Shields . | . . Core Remaining (%) 100 | 100 . Volleys Fired 41 | 5 36 Largest 2 | 2 2 Hottest 60 | 60 53 Shots Fired 54 | 10 44 Gun 46 | 10 36 Cannon . | . . Launcher 8 | . 8 Special . | . . Kinetic 41 | 5 36 Thermal 5 | 5 . Explosive . | . . Electromagnetic 8 | . 8 Robot Hit Streak 6 | 4 6 Robot Miss Streak 4 | 1 4 Penetration Max . | . . Secondary Targets . | . . Shots Hit Robots 30 | 7 23 Core Hits 17 | 6 11 Critical Hits . | . . Critical Kills . | . . Critical Parts Destroyed . | . . Melee Attacks . | . . Impact . | . . Slashing . | . . Piercing . | . . Sneak Attacks . | . . Combat Hostiles . | . . Follow-up Attacks . | . . Damage Inflicted 731 | 95 636 Guns 365 | 95 270 Cannons . | . . Explosions 366 | . 366 Melee . | . . Ramming . | . . Kinetic 319 | 49 270 Thermal 157 | 46 111 Explosive . | . . Electromagnetic 255 | . 255 Impact . | . . Slashing . | . . Piercing . | . . Highest Corruption 2 | . 2 Average Corruption 2 | . 2 Corruption Purged . | . . Effects 2 | . 2 Data Loss (minor) 1 | . 1 Targeting Errors 1 | . 1 Overload Shots . | . . Overflow Damage 2 | . 2 Projectiles . | . . Explosions 2 | . 2 Melee . | . . Knockbacks . | . . Impact . | . . Kinetic . | . . Secondary . | . . Self-Inflicted Damage 3 | . 3 Shots 1 | . 1 Rammed . | . . Targets Rammed . | . . Kicked . | . . Crushed . | . . Highest Temperature 9 | 6 9 Average Temperature 4 | 6 4 Received Heat Transfer 186 | 6 180 Siege Activations . | . . Robots Corrupted . | . . Combat Hostiles . | . . Parts Fried . | . . Impact Corruptions . | . . Robots Melted . | . . Combat Hostiles . | . . Parts Melted . | . . Heat Transferred 250 | 100 150 Parts Sabotaged . | . . Parts Stolen . | . . Parts Stripped . | . . Power Chain Reactions 3 | . 3 Missiles Intercepted . | . . Alert | -11 -10 ------- Run | Scr Mat Peak Influence 253 | 40 253 Initial 26 | . 26 Average 72 | 12 102 Maximum Alert Level 1 | . 1 Low Security (%) 83 | 100 74 Level 1 16 | . 25 Level 2 . | . . Level 3 . | . . Level 4 . | . . Level 5 . | . . High Security . | . . Max Security . | . . Squads Dispatched 2 | . 2 Investigation 1 | . 1 Extermination . | . . Reinforcement 1 | . 1 Assault . | . . Garrison . | . . Intercept . | . . Construction Impeded . | . . Haulers Reinforced . | . . Stealth | -11 -10 --------- Run | Scr Mat Distress Signals 1 | . 1 Communications Jammed . | . . Distress Signals . | . . Times Spotted 14 | 1 13 Peak Tracking Total 5 | 1 5 Tactical Retreats . | . . Traps | -11 -10 ------- Run | Scr Mat Traps Triggered 2 | . 2 Indirectly 1 | . 1 Trap Hack Attempts . | . . Triggered . | . . Disarmed . | . . Reprogrammed . | . . Reused . | . . Traps Extracted . | . . Installed . | . . Triggered . | . . Machines | -11 -10 ---------- Run | Scr Mat Machines Disabled 3 | . 3 Max in Single Turn 2 | . 2 Machines Sabotaged . | . . Garrisons Compromised . | . . Overloaded Fab Kills . | . . Fab Network Shutdowns . | . . Hacking | -11 -10 --------- Run | Scr Mat Machines Accessed 1 | . 1 Terminals . | . . Fabricators . | . . Repair Stations . | . . Recycling Units 1 | . 1 Scanalyzers . | . . Garrison Access . | . . Total Hacks 2 | . 2 Successful 2 | . 2 Failed . | . . Catastrophic . | . . Database Lockouts . | . . Manual . | . . Terminals . | . . Fabricators . | . . Repair Stations . | . . Recycling Units 2 | . 2 Scanalyzers . | . . Garrison Access . | . . Terminal Hacks . | . . Fabricator Hacks . | . . Repair Station Hacks . | . . Recycling Unit Hacks 2 | . 2 Recycle Component 2 | . 2 Scanalyzer . | . . Garrison Access Hacks . | . . Unauthorized Hacks . | . . Terminals . | . . Fabricators . | . . Repair Stations . | . . Recycling Units . | . . Scanalyzers . | . . Garrison Access . | . . Data Cores Recovered . | . . Used . | . . Hacking Detections 1 | . 1 Full Trace Events . | . . Feedback Events . | . . Feedback Blocked . | . . Robot Schematics Acquired . | . . Robots Built . | . . Matter . | . . Time . | . . Total Robot Build Rating . | . . Part Schematics Acquired . | . . Parts Built . | . . Matter . | . . Time . | . . Total Part Build Rating . | . . Parts Repaired . | . . Time . | . . Parts Recycled 2 | . 2 Recycled Matter . | . . Retrieved Matter . | . . Retrieved Components . | . . Parts Scanalyzed . | . . Part Schematics Acquired . | . . Parts Damaged . | . . Bothacking | -11 -10 ------------ Run | Scr Mat Used RIF Installer . | . . Robots Hacked . | . . Non-combat . | . . Combat . | . . Robot Hacks Applied . | . . Relay Couplers Released . | . . Robots Rewired . | . . Allies Hacked . | . . Hacks Repelled . | . . Allies | -11 -10 -------- Run | Scr Mat Total Allies . | . . Largest Group . | . . Highest-Rated Group . | . . Highest-Rated Ally . | . . Total Orders . | . . Ally Attacks . | . . Total Damage . | . . Kills . | . . Allies Corrupted . | . . Allies Melted . | . . Intel | -11 -10 ------- Run | Scr Mat Robot Analysis Total . | . . Derelict Logs Recovered . | . . Drone Launches . | . . Drone Recoveries . | . . Exploration | -11 -10 ------------- Run | Scr Mat Turns Passed 392 | 132 260 Spaces Moved 211 | 95 116 Core 16 | 16 . Treads . | . . Legs 195 | 79 116 Wheels . | . . Hover . | . . Flight . | . . Fastest Speed 50 | 50 120 Average Speed 114 | 108 120 Slowest Speed 150 | 120 150 Overloaded Moves . | . . Propulsion Burnouts . | . . Robots Hopped . | . . Cave-ins Triggered . | . . Exploration Rate (%) 15 | 5 26 Regions Visited 1 Branch Regions . Pre-discovered Areas . | . . Known Exits Taken . | . . Unknown Exits Taken 1 | 1 . Scrap Searched . | . . Spaces Dug . | . . Terrain Destroyed 4 | . 4 Melee . | . . Projectile . | . . AOE 4 | . 4 Terrain Rammed . | . . Walls Destroyed . | . . Machines Disabled . | . . Actions | -11 -10 --------- Run | Scr Mat Total 308 | 114 194 Wait 26 | . 26 Move 210 | 94 116 Hop . | . . Pick Up 14 | 9 5 Fast Attach 1 | . 1 Attach 11 | 6 5 Detach 1 | . 1 Swap . | . . Drop 4 | . 4 Fire 41 | 5 36 Melee . | . . Ram . | . . Kick . | . . Crush . | . . Escape Stasis . | . . Rewire . | . . Trap . | . . Miscellaneous . | . . Route ------- -11/Scrapyard -10/Materials History --------- Turn | Location | Event 2 | -11/Scrapyard | Met Revision 17 77 | -11/Scrapyard | Discovered new exit (range 8) 133 | -11/Scrapyard | Entered Materials 314 | -10/Materials | Build established: Mutant 365 | -10/Materials | Core integrity fell below 50% 385 | -10/Materials | Core integrity fell below 20% 393 | -10/Materials | Destroyed by S-10 Pest with Light Assault Rifle Last Messages --------------- U-05 Engineer lays Concrete. K-01 Serf destroyed. U-05 Engineer lays Concrete. K-01 Serf collects debris. U-05 Engineer destroyed. K-01 Serf collects debris. Sensor Array destroyed. EMP Blaster destroyed. K-01 Serf collects debris. Aluminum Leg destroyed. K-01 Serf collects debris. G-34 Mercenary misfires. K-01 Serf collects debris. Lgt. Ion Engine destroyed. K-01 Serf collects debris. Assault Rifle destroyed. K-01 Serf collects debris. Imp. Terrain Scanner destroyed. Aluminum Leg destroyed. [Achievement: First Step to Greatness] Map ----- +----------------------------------------------------+ | ???????????????#??#??#?# #?????????????????????? | | ??????????????????????## ########??????? ??????? | | ?????????????????????#?# # #?????#????????? | | ???????????????????????# # #??????????????? | | ????????????#????#?????# # """ #??????????????? | | ????????????????? ????# + """ #???????? ?????? | | ??????????##???# ""????# ^^# """ #??????????????? | | ???????????? ??# """???# # #??????????????? | | ???????????????# """ ## #########????????####?? | | ???????????????# # ############## #?? | | ???????????????# """ # = ^ #?? | | ???????????????# """ + T ! ^ ? | | ???????????#???# """ # #?? | | ???????????????# ??# #### u####### ??? | | ???????????????# ??? #######??# #?????????????? | | ????????? ?????#??? ??#????????# #?? ??????????? | | ????????? ????? ? ?????######## #?????????????? | | ????????? ???? ????#?# # ""??????????? | | ?????????? ?########## + ???????????? | | ???????????? # ^o # ???????????? | | ?????????? ??? + =# ??????????#?? | | ???????????????# " #???????#?????? | | ??????????#????# " | #?#???????????? | | ???????????#?### *!k "T ##????????????? | | ?????? ^ s[%=%*% """ ????????? | | ?????? *!%*s% @ ???????? | | ?????? w [%!gs* !t ????????? | | ???????#########+# % ###############????????? | | ???????????#?????# = ##?????###?????????????? | | ?????????????????# #??#???????????????????? | | ??????????????"??# #????????#?????????????? | | ?????????????????# """ #??????????? ??????????? | | ???????????????"?# """ #?#????????????????????? | | ???????????? ????# """ #?#??????#?????????????? | | ?????????????????# #??????????????????????? | | ?????????????????# ?? #??????????????????????? | | ?????????????????#//? #????? ????????????????? | | ???????????????? #/?? #??? ??????????????????? | | ?????????????????#/?? k #??????????????????????? | | ????????????????????? ??? ??????????????????? | | ??????????????????????? ???????????????????????? | | ?????????????????????????????????????????????????? | | ?????????????????????????????????????????????????? | | ?????????????????????????????????????????????????? | | ?????????????????????????????????????????????????? | | ?????????????????????????????????????????????????? | | ?????????????????????????????????????????????????? | | ?????????????????????????????????????????????????? | | ?????????????????????????????????????????????????? | | ?????????????????????????????????????????????????? | +----------------------------------------------------+ Best States ------------- Heat Dissipation 25 Energy Generation 10 Energy Capacity 125 Matter Stores 300 Matter Capacity 300 Sight Range 16 Robot Scan Range 10 Terrain Scan Range 16 Terrain Scan Density 10 Evasion (%) 50 Item Schematics ----------------- None Robot Schematics ------------------ None Fabricated ------------ Nothing Alien Tech Used ----------------- None Achievements -------------- First Step to Greatness Uninvited Guest Challenges ------------ None Game ------ Seed BackupImprovedCannon Manual? 0 Play Time 00:20:17 Cumulative 0.6 hours Start 2021.10.24 @ 14:11:45 End 2021.10.24 @ 14:33:27 Sessions 1 Manual Loads 0 Difficulty Rogue Special Mode None Game No. 1 Rogue 1 Adventurer 0 Explorer 0 Win Type - Total 0 Types 0/0/0/0/0/0/0/0/0 Lore% 0 Gallery% 0 Achievement% 0 Wizard Run 0 Options --------- ASCII 0 Keyboard 0 Movement Mouse Keybinds 0 Fullscreen 1 Font 18/Smallcaps Map View 76x50 Tactical HUD 0 Map Filters NONE Filters NONE Steam 1 RUN: cd2738bb-c8f1-45f8-83ca-54dabeebac13